[Event "*** Titled Tuesday 3|2 Blitz"]
[Site "Chess.com"]
[Date "2017.06.06"]
[Round "2"]
[White "Illingworth"]
[Black "MaestroASK"]
[Result "1-0"]
[WhiteElo "2707"]
[BlackElo "2469"]
[TimeControl "180+2"]
[EndTime "14:13:59 PDT"]
[Termination "Illingworth won by resignation"]

1. d4 {[%clk 0:03:02]} 1... d6 {[%clk 0:03:01.1]} 2. e4 {[%clk 0:03:02]} 2... g6
{[%clk 0:03:02.6]} 3. c4 {[%clk 0:03:00.9]} 3... c6 {[%clk 0:03:03.6]} 4. Nc3
{[%clk 0:03:01.4]} 4... e5 {[%clk 0:03:04.1]} 5. Nge2 {[%clk 0:03:02]} 5... Bg7
{[%clk 0:03:04.6]} 6. Be3 {[%clk 0:03:02.5]} 6... Nd7 {[%clk 0:03:05.5]} 7. Qd2
{[%clk 0:03:02.8]} 7... Qe7 {[%clk 0:03:05.9]} 8. f3 {[%clk 0:03:01.1]} 8... Bh6
{[%clk 0:03:05.1]} 9. O-O-O {[%clk 0:02:58.8]} 9... Bxe3 {[%clk 0:03:04.8]} 10.
Qxe3 {[%clk 0:03:00.7]} 10... Kf8 {[%clk 0:03:05.6]} 11. Kb1 {[%clk 0:02:49.3]}
11... Kg7 {[%clk 0:03:06]} 12. d5 {[%clk 0:02:49.7]} 12... c5 {[%clk 0:03:06.2]}
13. h4 {[%clk 0:02:44.8]} 13... h5 {[%clk 0:03:06.6]} 14. g3 {[%clk 0:02:44.7]}
14... a6 {[%clk 0:03:04.5]} 15. Bh3 {[%clk 0:02:42.1]} 15... Nh6 {[%clk
0:03:04.1]} 16. Nc1 {[%clk 0:02:36.7]} 16... f6 {[%clk 0:02:58.3]} 17. Nd3
{[%clk 0:02:35.5]} 17... Nb6 {[%clk 0:02:58.1]} 18. b3 {[%clk 0:02:29.7]} 18...
Bxh3 {[%clk 0:02:57.4]} 19. Rxh3 {[%clk 0:02:31.6]} 19... Rab8 {[%clk
0:02:57.6]} 20. Rg1 {[%clk 0:02:23.8]} 20... Na8 {[%clk 0:02:57.3]} 21. g4
{[%clk 0:02:19.2]} 21... hxg4 {[%clk 0:02:57.7]} 22. fxg4 {[%clk 0:02:19.9]}
22... Nf7 {[%clk 0:02:58.6]} 23. a4 {[%clk 0:02:03.9]} 23... b6 {[%clk
0:02:58.1]} 24. Kc2 {[%clk 0:02:03.9]} 24... Nc7 {[%clk 0:02:57.9]} 25. g5
{[%clk 0:01:56.4]} 25... fxg5 {[%clk 0:02:57.2]} 26. hxg5 {[%clk 0:01:55.1]}
26... Rxh3 {[%clk 0:02:56.7]} 27. Qxh3 {[%clk 0:01:57]} 27... Rh8 {[%clk
0:02:46.1]} 28. Qg4 {[%clk 0:01:51.7]} 28... Rh2+ {[%clk 0:02:44.1]} 29. Kc1
{[%clk 0:01:50.8]} 29... Qe8 {[%clk 0:02:38.6]} 30. Ne1 {[%clk 0:01:40.6]} 30...
b5 {[%clk 0:02:37]} 31. Nf3 {[%clk 0:01:37.7]} 31... Rh5 {[%clk 0:02:30.7]} 32.
Kc2 {[%clk 0:01:31]} 32... bxc4 {[%clk 0:01:52.4]} 33. bxc4 {[%clk 0:01:31.3]}
33... Qd8 {[%clk 0:01:52.9]} 34. Ne2 {[%clk 0:01:18.7]} 34... Na8 {[%clk
0:01:44.5]} 35. Nc3 {[%clk 0:00:46.7]} 35... Nb6 {[%clk 0:01:35.5]} 36. Kd3
{[%clk 0:00:46.8]} 36... Nd7 {[%clk 0:01:16.2]} 37. Rb1 {[%clk 0:00:28.5]} 37...
Qc7 {[%clk 0:01:14.3]} 38. a5 {[%clk 0:00:28.3]} 38... Rh8 {[%clk 0:01:10.1]}
39. Qe6 {[%clk 0:00:25.3]} 39... Rf8 {[%clk 0:00:45.2]} 40. Rh1 {[%clk
0:00:21.3]} 40... Qd8 {[%clk 0:00:39.9]} 41. Rb1 {[%clk 0:00:20]} 41... Re8
{[%clk 0:00:36.3]} 42. Qh3 {[%clk 0:00:19.3]} 42... Rh8 {[%clk 0:00:32.4]} 43.
Qg4 {[%clk 0:00:19.4]} 43... Nf8 {[%clk 0:00:30.8]} 44. Rb7 {[%clk 0:00:19.3]}
44... Qxa5 {[%clk 0:00:26.2]} 45. Qc8 {[%clk 0:00:19.7]} 45... Rh7 {[%clk
0:00:21.3]} 46. Qe8 {[%clk 0:00:18.6]} 46... Kg8 {[%clk 0:00:17.5]} 47. Rb8
{[%clk 0:00:19.6]} 47... Rg7 {[%clk 0:00:16.5]} 48. Qxf8+ {[%clk 0:00:19.5]}
48... Kh7 {[%clk 0:00:17.6]} 49. Rb7 {[%clk 0:00:20.3]} 49... Qa1 {[%clk
0:00:15.2]} 50. Rxf7 {[%clk 0:00:20.5]} 50... Rxf7 {[%clk 0:00:16.4]} 51. Qxf7+
{[%clk 0:00:22.2]} 51... Kh8 {[%clk 0:00:17.1]} 52. Qf6+ {[%clk 0:00:23]} 52...
Kh7 {[%clk 0:00:17.8]} 53. Qe7+ {[%clk 0:00:23.8]} 53... Kh8 {[%clk 0:00:18.5]}
54. Qf8+ {[%clk 0:00:24.6]} 54... Kh7 {[%clk 0:00:19.2]} 55. Qh6+ {[%clk
0:00:26.5]} 55... Kg8 {[%clk 0:00:20.1]} 56. Qxg6+ {[%clk 0:00:28.4]} 1-0

[Event "*** Titled Tuesday 3|2 Blitz"]
[Site "Chess.com"]
[Date "2017.06.06"]
[Round "2"]
[White "WeiYi1999"]
[Black "belisarius64"]
[Result "0-1"]
[WhiteElo "2110"]
[BlackElo "2234"]
[TimeControl "180+2"]
[EndTime "14:14:04 PDT"]
[Termination "belisarius64 won by resignation"]

1. e4 {[%clk 0:03:02]} 1... e5 {[%clk 0:02:55.1]} 2. Nf3 {[%clk 0:03:01.9]} 2...
Nc6 {[%clk 0:02:55.8]} 3. Bc4 {[%clk 0:03:03.1]} 3... Bc5 {[%clk 0:02:56.3]} 4.
c3 {[%clk 0:03:03.7]} 4... Nf6 {[%clk 0:02:56.1]} 5. d4 {[%clk 0:03:04.5]} 5...
exd4 {[%clk 0:02:57.3]} 6. cxd4 {[%clk 0:03:06.4]} 6... Bb4+ {[%clk 0:02:57.4]}
7. Bd2 {[%clk 0:03:07.7]} 7... Bxd2+ {[%clk 0:02:56.2]} 8. Nbxd2 {[%clk
0:03:09.6]} 8... d5 {[%clk 0:02:57.7]} 9. exd5 {[%clk 0:03:11.5]} 9... Nxd5
{[%clk 0:02:59.4]} 10. Qb3 {[%clk 0:03:13.4]} 10... Nce7 {[%clk 0:02:54.2]} 11.
O-O {[%clk 0:03:12.8]} 11... O-O {[%clk 0:02:55]} 12. Rfe1 {[%clk 0:03:14]}
12... c6 {[%clk 0:02:56.2]} 13. Ne4 {[%clk 0:03:15.4]} 13... b6 {[%clk 0:02:44]}
14. Ne5 {[%clk 0:03:14.2]} 14... Qc7 {[%clk 0:02:44.1]} 15. Bxd5 {[%clk
0:03:05.9]} 15... cxd5 {[%clk 0:02:37.3]} 16. Rac1 {[%clk 0:03:03.3]} 16... Qd8
{[%clk 0:02:38.1]} 17. Ng3 {[%clk 0:02:45.5]} 17... Be6 {[%clk 0:02:36.2]} 18.
h4 {[%clk 0:01:57.8]} 18... Qd6 {[%clk 0:02:34.9]} 19. h5 {[%clk 0:01:56.9]}
19... f6 {[%clk 0:02:30.6]} 20. Nd3 {[%clk 0:01:45.9]} 20... Nf5 {[%clk
0:02:29.1]} 21. Nxf5 {[%clk 0:01:42.5]} 21... Bxf5 {[%clk 0:02:31]} 22. Nb4
{[%clk 0:01:44.1]} 22... Rad8 {[%clk 0:02:17.9]} 23. h6 {[%clk 0:01:40.6]} 23...
gxh6 {[%clk 0:01:57]} 24. Re3 {[%clk 0:01:33.6]} 24... Kh8 {[%clk 0:01:56]} 25.
Rc6 {[%clk 0:01:26.7]} 25... Qf4 {[%clk 0:01:49.2]} 26. Rc1 {[%clk 0:01:19]}
26... Qxd4 {[%clk 0:01:34.5]} 27. Nc6 {[%clk 0:01:14.7]} 27... Qd2 {[%clk
0:01:23.7]} 28. Rd1 {[%clk 0:01:09.1]} 28... Qc2 {[%clk 0:01:19]} 29. Qxc2
{[%clk 0:01:09.5]} 29... Bxc2 {[%clk 0:01:20.9]} 30. Rd2 {[%clk 0:01:10.9]}
30... d4 {[%clk 0:00:55.2]} 31. Rf3 {[%clk 0:01:07.7]} 31... Be4 {[%clk
0:00:53]} 32. Rxf6 {[%clk 0:01:02.3]} 32... Bxc6 {[%clk 0:00:43]} 33. Rxc6
{[%clk 0:00:56.4]} 33... Rfe8 {[%clk 0:00:44.5]} 34. Kf1 {[%clk 0:00:51.2]}
34... Rd7 {[%clk 0:00:40.7]} 35. Rxh6 {[%clk 0:00:37.1]} 35... Rc8 {[%clk
0:00:41.5]} 36. Ke2 {[%clk 0:00:32.3]} 36... d3+ {[%clk 0:00:42]} 37. Rxd3
{[%clk 0:00:29.6]} 37... Rc2+ {[%clk 0:00:42.5]} 38. Ke3 {[%clk 0:00:28.9]}
38... Rxd3+ {[%clk 0:00:43]} 39. Kxd3 {[%clk 0:00:28.9]} 39... Rxf2 {[%clk
0:00:44]} 40. Kc3 {[%clk 0:00:27.8]} 40... Rxg2 {[%clk 0:00:44.7]} 41. Re6
{[%clk 0:00:25.6]} 41... Rg3+ {[%clk 0:00:45.6]} 42. Kd2 {[%clk 0:00:22.9]}
42... Rg8 {[%clk 0:00:16.5]} 43. Re7 {[%clk 0:00:21.5]} 43... a5 {[%clk
0:00:17.9]} 44. Rb7 {[%clk 0:00:19.8]} 44... Rg6 {[%clk 0:00:18]} 45. Ke3 {[%clk
0:00:17.3]} 45... h5 {[%clk 0:00:19]} 46. Kf4 {[%clk 0:00:16.4]} 46... Rg4+
{[%clk 0:00:18.1]} 47. Kf3 {[%clk 0:00:16.2]} 47... Rb4 {[%clk 0:00:18.1]} 48.
b3 {[%clk 0:00:12.3]} 48... h4 {[%clk 0:00:19.5]} 49. Kg2 {[%clk 0:00:10.7]}
49... Kg8 {[%clk 0:00:15]} 50. Kh3 {[%clk 0:00:09.2]} 50... Kf8 {[%clk
0:00:15.5]} 51. Rh7 {[%clk 0:00:07.1]} 51... Ke8 {[%clk 0:00:04.8]} 52. Rxh4
{[%clk 0:00:06.1]} 52... Rxh4+ {[%clk 0:00:06.7]} 53. Kxh4 {[%clk 0:00:07.2]}
53... Kd7 {[%clk 0:00:08.6]} 54. Kg3 {[%clk 0:00:09.1]} 54... Kc6 {[%clk
0:00:10.5]} 55. Kf3 {[%clk 0:00:11]} 55... Kc5 {[%clk 0:00:11.8]} 56. Ke3 {[%clk
0:00:12.9]} 56... Kb4 {[%clk 0:00:13]} 57. Kd3 {[%clk 0:00:12.2]} 57... Ka3
{[%clk 0:00:14.2]} 58. Kc4 {[%clk 0:00:12.7]} 58... Kxa2 {[%clk 0:00:15.6]} 59.
Kb5 {[%clk 0:00:13.8]} 59... Kxb3 {[%clk 0:00:16.6]} 0-1

[Event "*** Titled Tuesday 3|2 Blitz"]
[Site "Chess.com"]
[Date "2017.06.06"]
[Round "2"]
[White "Ind1anStar"]
[Black "ANLex1963"]
[Result "1-0"]
[WhiteElo "2289"]
[BlackElo "2209"]
[TimeControl "180+2"]
[EndTime "14:14:05 PDT"]
[Termination "Ind1anStar won on time"]

1. e4 {[%clk 0:03:02]} 1... c5 {[%clk 0:02:59.4]} 2. Nf3 {[%clk 0:03:02.4]} 2...
d6 {[%clk 0:03:00]} 3. d4 {[%clk 0:03:02.7]} 3... cxd4 {[%clk 0:03:00.5]} 4.
Nxd4 {[%clk 0:03:03.8]} 4... Nf6 {[%clk 0:03:01.4]} 5. Nc3 {[%clk 0:03:04.4]}
5... g6 {[%clk 0:03:02.1]} 6. Be3 {[%clk 0:03:03.9]} 6... Bg7 {[%clk 0:03:02.8]}
7. f3 {[%clk 0:03:04.4]} 7... O-O {[%clk 0:03:02.1]} 8. Bc4 {[%clk 0:03:04.1]}
8... Nc6 {[%clk 0:03:02]} 9. Qd2 {[%clk 0:03:05.2]} 9... Bd7 {[%clk 0:03:02.4]}
10. O-O-O {[%clk 0:03:06]} 10... Rb8 {[%clk 0:03:02.9]} 11. Bb3 {[%clk
0:03:04.9]} 11... b5 {[%clk 0:03:01.7]} 12. h4 {[%clk 0:03:01.8]} 12... Na5
{[%clk 0:02:59.4]} 13. Kb1 {[%clk 0:02:38.5]} 13... Nc4 {[%clk 0:02:58]} 14.
Bxc4 {[%clk 0:02:39.5]} 14... bxc4 {[%clk 0:02:58.7]} 15. Ka1 {[%clk 0:02:40.7]}
15... a5 {[%clk 0:02:48.3]} 16. g4 {[%clk 0:02:37]} 16... Qb6 {[%clk 0:02:44.3]}
17. Rb1 {[%clk 0:02:36.4]} 17... Qc7 {[%clk 0:02:34.1]} 18. h5 {[%clk
0:02:31.7]} 18... e5 {[%clk 0:02:22.1]} 19. Nde2 {[%clk 0:02:28.1]} 19... Be6
{[%clk 0:02:15.5]} 20. hxg6 {[%clk 0:02:22.1]} 20... fxg6 {[%clk 0:02:14]} 21.
Ng3 {[%clk 0:02:18.9]} 21... Qc6 {[%clk 0:02:07.9]} 22. Bh6 {[%clk 0:02:17.8]}
22... Rf7 {[%clk 0:02:07.6]} 23. Bxg7 {[%clk 0:02:13.8]} 23... Rxg7 {[%clk
0:01:59.9]} 24. Rh6 {[%clk 0:01:52.3]} 24... Rgb7 {[%clk 0:01:54.8]} 25. Nf5
{[%clk 0:01:28.2]} 25... Rd7 {[%clk 0:01:45.2]} 26. g5 {[%clk 0:01:24.7]} 26...
Nh5 {[%clk 0:01:42]} 27. Ne3 {[%clk 0:01:18.7]} 27... Rf8 {[%clk 0:01:32.3]} 28.
Ned5 {[%clk 0:01:11.2]} 28... Rb7 {[%clk 0:01:26]} 29. Rh1 {[%clk 0:01:02.3]}
29... Rxf3 {[%clk 0:01:18.6]} 30. Qg2 {[%clk 0:00:49.8]} 30... Rxc3 {[%clk
0:01:10.8]} 31. Nxc3 {[%clk 0:00:49.8]} 31... Qb6 {[%clk 0:01:04.8]} 32. Rb1
{[%clk 0:00:50.3]} 32... Nf4 {[%clk 0:01:02.4]} 33. Qh2 {[%clk 0:00:51.3]} 33...
Qb4 {[%clk 0:00:56.9]} 34. a3 {[%clk 0:00:49.8]} 34... Qb6 {[%clk 0:00:55.1]}
35. Qd2 {[%clk 0:00:48.8]} 35... Qc5 {[%clk 0:00:52.3]} 36. Rd1 {[%clk
0:00:45.4]} 36... Qb6 {[%clk 0:00:43.8]} 37. Na4 {[%clk 0:00:37.5]} 37... Qb5
{[%clk 0:00:37.4]} 38. Qxd6 {[%clk 0:00:36.8]} 38... Rd7 {[%clk 0:00:34]} 39.
Nc3 {[%clk 0:00:20.5]} 39... Rxd6 {[%clk 0:00:31.9]} 40. Rxd6 {[%clk 0:00:21.9]}
40... Qc5 {[%clk 0:00:31]} 41. Rd1 {[%clk 0:00:21.8]} 41... Bg4 {[%clk 0:00:27]}
42. Rd8+ {[%clk 0:00:21.5]} 42... Kg7 {[%clk 0:00:27]} 43. Re8 {[%clk
0:00:22.1]} 43... Bh5 {[%clk 0:00:26.1]} 44. Rb8 {[%clk 0:00:21.9]} 44... Qd4
{[%clk 0:00:25.6]} 45. Rb7+ {[%clk 0:00:22.7]} 45... Kg8 {[%clk 0:00:24]} 46.
Rhxh7 {[%clk 0:00:24]} 46... Ne6 {[%clk 0:00:21.7]} 47. Rhe7 {[%clk 0:00:23.7]}
47... Qd6 {[%clk 0:00:20.6]} 48. Re8+ {[%clk 0:00:24.2]} 48... Nf8 {[%clk
0:00:21.1]} 49. Nd5 {[%clk 0:00:25.7]} 49... Bg4 {[%clk 0:00:19.6]} 50. Nf6+
{[%clk 0:00:26.6]} 1-0

[Event "*** Titled Tuesday 3|2 Blitz"]
[Site "Chess.com"]
[Date "2017.06.06"]
[Round "2"]
[White "CM_Perligero"]
[Black "fidetrainerNET"]
[Result "1-0"]
[WhiteElo "2062"]
[BlackElo "2142"]
[TimeControl "180+2"]
[EndTime "14:14:11 PDT"]
[Termination "CM_Perligero won by checkmate"]

1. d4 {[%clk 0:03:02]} 1... Nf6 {[%clk 0:02:58]} 2. c4 {[%clk 0:03:02.2]} 2...
e6 {[%clk 0:02:59.9]} 3. Nc3 {[%clk 0:03:00.4]} 3... Bb4 {[%clk 0:03:01]} 4. a3
{[%clk 0:02:57.9]} 4... Bxc3+ {[%clk 0:03:01.3]} 5. bxc3 {[%clk 0:02:59.6]} 5...
O-O {[%clk 0:03:03.1]} 6. e3 {[%clk 0:02:56.4]} 6... c5 {[%clk 0:03:05]} 7. Bd3
{[%clk 0:02:54.6]} 7... Nc6 {[%clk 0:03:05.6]} 8. f3 {[%clk 0:02:54.3]} 8... e5
{[%clk 0:03:06]} 9. d5 {[%clk 0:02:46]} 9... Na5 {[%clk 0:03:05.7]} 10. Qc2
{[%clk 0:02:44.3]} 10... b6 {[%clk 0:03:04.4]} 11. Nh3 {[%clk 0:02:36.8]} 11...
Re8 {[%clk 0:03:04.1]} 12. Nf2 {[%clk 0:02:33.2]} 12... d6 {[%clk 0:03:04.4]}
13. g4 {[%clk 0:02:31.2]} 13... Kh8 {[%clk 0:02:49.5]} 14. h4 {[%clk 0:02:29.5]}
14... Ba6 {[%clk 0:02:47.2]} 15. Qe2 {[%clk 0:02:19.5]} 15... Qd7 {[%clk
0:02:42.7]} 16. h5 {[%clk 0:02:14.8]} 16... Qa4 {[%clk 0:02:42.4]} 17. g5 {[%clk
0:02:12.4]} 17... Nd7 {[%clk 0:02:33]} 18. g6 {[%clk 0:02:07.5]} 18... Bxc4
{[%clk 0:02:29.4]} 19. h6 {[%clk 0:02:03.1]} 19... fxg6 {[%clk 0:02:27.3]} 20.
hxg7+ {[%clk 0:02:00.7]} 20... Kxg7 {[%clk 0:02:29.2]} 21. Ne4 {[%clk
0:01:58.3]} 21... Bxd5 {[%clk 0:02:22.4]} 22. Qh2 {[%clk 0:01:53.1]} 22... h5
{[%clk 0:02:21.7]} 23. Nxd6 {[%clk 0:01:51.5]} 23... Bxf3 {[%clk 0:02:14.9]} 24.
Rg1 {[%clk 0:01:49.4]} 24... Bg4 {[%clk 0:02:11.7]} 25. Be4 {[%clk 0:01:44.2]}
25... Nc4 {[%clk 0:01:56.7]} 26. Nxe8+ {[%clk 0:01:41.4]} 26... Rxe8 {[%clk
0:01:55.1]} 27. Qh4 {[%clk 0:01:36.4]} 27... Qd1+ {[%clk 0:01:33.4]} 28. Kf2
{[%clk 0:01:32.5]} 28... Qe2+ {[%clk 0:01:33]} 29. Kg3 {[%clk 0:01:33.4]} 29...
Nxe3 {[%clk 0:01:32.2]} 30. Ra2 {[%clk 0:00:49.4]} 30... Qxa2 {[%clk 0:00:40.2]}
31. Bxe3 {[%clk 0:00:49.1]} 31... Nf6 {[%clk 0:00:38.9]} 32. Bxg6 {[%clk
0:00:44.5]} 32... Kxg6 {[%clk 0:00:38.2]} 33. Qg5+ {[%clk 0:00:45.7]} 33... Kf7
{[%clk 0:00:38.7]} 34. Rf1 {[%clk 0:00:47]} 34... Re6 {[%clk 0:00:35.8]} 35. Rf2
{[%clk 0:00:40.8]} 35... Qxa3 {[%clk 0:00:34.4]} 36. Qh6 {[%clk 0:00:39.4]}
36... Qxc3 {[%clk 0:00:28.5]} 37. Kh4 {[%clk 0:00:40.4]} 37... Qe1 {[%clk
0:00:24.3]} 38. Qh7+ {[%clk 0:00:25.8]} 38... Ke8 {[%clk 0:00:24.8]} 39. Qh8+
{[%clk 0:00:24.3]} 39... Kd7 {[%clk 0:00:24.8]} 40. Qh6 {[%clk 0:00:21.8]} 40...
Ne4 {[%clk 0:00:24.1]} 41. Qh7+ {[%clk 0:00:19.6]} 41... Kc8 {[%clk 0:00:17.7]}
42. Qxe4 {[%clk 0:00:21.1]} 42... Qh1+ {[%clk 0:00:18.4]} 43. Qxh1 {[%clk
0:00:21]} 43... e4 {[%clk 0:00:19]} 44. Qh2 {[%clk 0:00:21.6]} 44... Kd7 {[%clk
0:00:20.9]} 45. Qf4 {[%clk 0:00:22.1]} 45... Kc6 {[%clk 0:00:21.6]} 46. Qf7
{[%clk 0:00:20.5]} 46... a5 {[%clk 0:00:21.7]} 47. Rc2 {[%clk 0:00:18.8]} 47...
a4 {[%clk 0:00:21.8]} 48. Qa7 {[%clk 0:00:18.4]} 48... Bd1 {[%clk 0:00:19]} 49.
Rd2 {[%clk 0:00:16.3]} 49... Rd6 {[%clk 0:00:15]} 50. Rxd1 {[%clk 0:00:13.3]}
50... Rxd1 {[%clk 0:00:12.8]} 51. Qxa4+ {[%clk 0:00:14.1]} 51... Kd5 {[%clk
0:00:14.6]} 52. Qxd1+ {[%clk 0:00:14.8]} 52... Kc4 {[%clk 0:00:16.5]} 53. Qc2+
{[%clk 0:00:15.4]} 53... Kb5 {[%clk 0:00:17.1]} 54. Qxe4 {[%clk 0:00:16.2]}
54... Ka5 {[%clk 0:00:16.9]} 55. Qd3 {[%clk 0:00:16.3]} 55... Ka4 {[%clk
0:00:17.4]} 56. Bd2 {[%clk 0:00:17.2]} 56... b5 {[%clk 0:00:18.1]} 57. Qc2+
{[%clk 0:00:17.5]} 57... Ka3 {[%clk 0:00:18.2]} 58. Bc1+ {[%clk 0:00:16.6]}
58... Kb4 {[%clk 0:00:18.5]} 59. Bd2+ {[%clk 0:00:17.7]} 59... Ka3 {[%clk
0:00:19]} 60. Bc3 {[%clk 0:00:17.3]} 60... b4 {[%clk 0:00:18.8]} 61. Bb2+ {[%clk
0:00:18.4]} 61... Ka2 {[%clk 0:00:18.2]} 62. Bc1+ {[%clk 0:00:19.3]} 62... Ka1
{[%clk 0:00:19.1]} 63. Qb2# {[%clk 0:00:20.3]} 1-0

[Event "*** Titled Tuesday 3|2 Blitz"]
[Site "Chess.com"]
[Date "2017.06.06"]
[Round "2"]
[White "GMHess"]
[Black "1stSecond"]
[Result "1-0"]
[WhiteElo "2604"]
[BlackElo "2496"]
[TimeControl "180+2"]
[EndTime "14:14:38 PDT"]
[Termination "GMHess won by checkmate"]

1. d4 {[%clk 0:03:02]} 1... Nf6 {[%clk 0:03:00.5]} 2. c4 {[%clk 0:02:59.6]} 2...
e6 {[%clk 0:03:01.6]} 3. Nc3 {[%clk 0:03:00.5]} 3... Bb4 {[%clk 0:03:02.3]} 4.
Qc2 {[%clk 0:03:01.5]} 4... O-O {[%clk 0:03:01.3]} 5. a3 {[%clk 0:03:02.3]} 5...
Bxc3+ {[%clk 0:02:59.8]} 6. Qxc3 {[%clk 0:03:04.2]} 6... d6 {[%clk 0:03:00.8]}
7. g3 {[%clk 0:02:54.2]} 7... Nbd7 {[%clk 0:03:00.4]} 8. Bg2 {[%clk 0:02:54.8]}
8... e5 {[%clk 0:03:01.8]} 9. Nf3 {[%clk 0:02:52.4]} 9... Re8 {[%clk 0:02:49.2]}
10. O-O {[%clk 0:02:51.8]} 10... Qe7 {[%clk 0:02:40.4]} 11. e3 {[%clk
0:02:39.1]} 11... Nb6 {[%clk 0:02:32.6]} 12. dxe5 {[%clk 0:02:30.3]} 12... dxe5
{[%clk 0:02:34.5]} 13. b3 {[%clk 0:02:30.6]} 13... e4 {[%clk 0:01:42.6]} 14. Nd4
{[%clk 0:02:28.4]} 14... Nbd7 {[%clk 0:01:43]} 15. Bb2 {[%clk 0:02:16.9]} 15...
Ne5 {[%clk 0:01:43.9]} 16. Rad1 {[%clk 0:02:17.2]} 16... Bg4 {[%clk 0:01:42.7]}
17. Rd2 {[%clk 0:02:06.8]} 17... Rad8 {[%clk 0:01:34.9]} 18. h3 {[%clk
0:02:02.3]} 18... Bc8 {[%clk 0:01:35.5]} 19. Rfd1 {[%clk 0:01:54.3]} 19... Nd3
{[%clk 0:01:04.9]} 20. Ba1 {[%clk 0:01:53.9]} 20... Nc5 {[%clk 0:00:46.8]} 21.
g4 {[%clk 0:01:39]} 21... h6 {[%clk 0:00:43.7]} 22. Ne2 {[%clk 0:01:35]} 22...
Nd3 {[%clk 0:00:38.3]} 23. Ng3 {[%clk 0:01:33.3]} 23... Nc5 {[%clk 0:00:21]} 24.
b4 {[%clk 0:00:52.2]} 24... Rxd2 {[%clk 0:00:19.9]} 25. Qxd2 {[%clk 0:00:48.3]}
25... Nb3 {[%clk 0:00:20.5]} 26. Bxf6 {[%clk 0:00:46]} 26... Qxf6 {[%clk
0:00:18.3]} 27. Qc2 {[%clk 0:00:42.8]} 27... Na1 {[%clk 0:00:15.5]} 28. Qb1
{[%clk 0:00:40.3]} 28... h5 {[%clk 0:00:16.4]} 29. Qxa1 {[%clk 0:00:38.6]} 29...
Qg5 {[%clk 0:00:15.4]} 30. Nxh5 {[%clk 0:00:36.6]} 30... f6 {[%clk 0:00:16.7]}
31. Qd4 {[%clk 0:00:35.9]} 31... Kh8 {[%clk 0:00:13.3]} 32. Ng3 {[%clk
0:00:34.2]} 32... f5 {[%clk 0:00:12.8]} 33. gxf5 {[%clk 0:00:34.6]} 33... Bxf5
{[%clk 0:00:14.7]} 34. Qc5 {[%clk 0:00:34]} 34... g6 {[%clk 0:00:14.5]} 35. Rd5
{[%clk 0:00:30.2]} 35... c6 {[%clk 0:00:15.1]} 36. Rd6 {[%clk 0:00:25.5]} 36...
Kh7 {[%clk 0:00:12.1]} 37. Nxf5 {[%clk 0:00:21.3]} 37... gxf5 {[%clk 0:00:14]}
38. Rd7+ {[%clk 0:00:22.1]} 38... Kg8 {[%clk 0:00:06.9]} 39. Qd6 {[%clk
0:00:22.6]} 39... Rf8 {[%clk 0:00:06.8]} 40. Qg3 {[%clk 0:00:18.4]} 40... Qxg3
{[%clk 0:00:07.2]} 41. fxg3 {[%clk 0:00:20.3]} 41... b5 {[%clk 0:00:07]} 42. c5
{[%clk 0:00:20.8]} 42... a5 {[%clk 0:00:07.7]} 43. Rd6 {[%clk 0:00:20.9]} 43...
axb4 {[%clk 0:00:08.4]} 44. axb4 {[%clk 0:00:22.8]} 44... Ra8 {[%clk 0:00:09.8]}
45. Rxc6 {[%clk 0:00:23.8]} 45... Ra1+ {[%clk 0:00:11.2]} 46. Kh2 {[%clk
0:00:23.9]} 46... Rb1 {[%clk 0:00:13.1]} 47. Rf6 {[%clk 0:00:24]} 47... Rxb4
{[%clk 0:00:14.3]} 48. Rxf5 {[%clk 0:00:25.2]} 48... Rc4 {[%clk 0:00:16.2]} 49.
c6 {[%clk 0:00:25.1]} 49... b4 {[%clk 0:00:17.5]} 50. Rb5 {[%clk 0:00:25.7]}
50... Kf7 {[%clk 0:00:17.8]} 51. c7 {[%clk 0:00:26.8]} 51... Kf6 {[%clk
0:00:18]} 52. Rxb4 {[%clk 0:00:27.3]} 52... Rxc7 {[%clk 0:00:19]} 53. Rxe4
{[%clk 0:00:28]} 53... Rc2 {[%clk 0:00:20.5]} 54. Rf4+ {[%clk 0:00:28.4]} 54...
Kg5 {[%clk 0:00:22]} 55. h4+ {[%clk 0:00:29.3]} 55... Kh5 {[%clk 0:00:23.5]} 56.
Kh3 {[%clk 0:00:29.6]} 56... Kh6 {[%clk 0:00:23.5]} 57. g4 {[%clk 0:00:28.7]}
57... Re2 {[%clk 0:00:24]} 58. g5+ {[%clk 0:00:29.6]} 58... Kg6 {[%clk
0:00:25.3]} 59. Be4+ {[%clk 0:00:27.6]} 59... Kg7 {[%clk 0:00:26.5]} 60. Rf3
{[%clk 0:00:27.4]} 60... Re1 {[%clk 0:00:26.8]} 61. h5 {[%clk 0:00:26.3]} 61...
Rg1 {[%clk 0:00:27.4]} 62. h6+ {[%clk 0:00:24.1]} 62... Kg8 {[%clk 0:00:28.9]}
63. h7+ {[%clk 0:00:23.2]} 63... Kg7 {[%clk 0:00:27.6]} 64. g6 {[%clk 0:00:23]}
64... Rh1+ {[%clk 0:00:11.9]} 65. Kg2 {[%clk 0:00:21.5]} 65... Rh5 {[%clk
0:00:11.7]} 66. Rf7+ {[%clk 0:00:21]} 66... Kh6 {[%clk 0:00:06.7]} 67. h8=Q+
{[%clk 0:00:21.2]} 67... Kg5 {[%clk 0:00:08.6]} 68. Rf5+ {[%clk 0:00:21]} 68...
Kg4 {[%clk 0:00:09]} 69. Qxh5# {[%clk 0:00:21.8]} 1-0